[Event "10th Iberoamericano-ch 2024"]
[Site "Linares"]
[Date "2024.09.25"]
[Round "2.27"]
[White "Quesada Perez, Luis Ernesto"]
[Black "Abrisqueta Zudaire, Leyre"]
[Result "1-0"]
[ECO "A05"]
[WhiteElo "2578"]
[BlackElo "2057"]
[Annotator "RC"]
[PlyCount "133"]
[EventDate "2024.09.25"]
[EventType "swiss"]
[EventCountry "ESP"]
[SourceTitle "playchess.com"]
[Source "ChessBase"]
[SourceQuality "1"]
[TimeControl "5400+30"]

1. Nf3 {[%emt 0:00:05]} d5 {[%emt 0:00:25]} 2. g3 {[%emt 0:00:23]} Nf6 {[%emt 0:00:42]} 3. Bg2 {[%emt 0:00:07]} Bf5 {[%emt 0:00:15]} 4. c4 {[%emt 0:00:07]} c6 {[%emt 0:03:17]} 5. Qb3 {[%emt 0:00:54]} Qb6 {[%emt 0:02:14]} 6. d3 {[%emt 0:00:25]} e6 {[%emt 0:06:27]} 7. O-O {[%emt 0:01:02]} Nbd7 {[%emt 0:00:20]} 8. cxd5 {[%emt 0:00:11]} Qxb3 {[%emt 0:01:39]} 9. axb3 {[%emt 0:00:03]} exd5 {[%emt 0:01:54]} 10. Bd2 {[%emt 0:00:08]} Bd6 {[%emt 0:06:16]} 11. b4 {[%emt 0:01:14]} O-O {[%emt 0:00:40]} 12. Nd4 {[%emt 0:12:22]} Bg6 {[%emt 0:03:31]} 13. Na3 {[%emt 0:00:54]} a6 {[%emt 0:02:36]} 14. Nac2 {[%emt 0:01:08]} Rfe8 {[%emt 0:04:44]} 15. h3 {[%emt 0:00:19]} h6 {[%emt 0:02:42]} 16. g4 {[%emt 0:05:31]} Nf8 {[%emt 0:05:51]} 17. f4 {[%emt 0:00:12]} Bh7 {[%emt 0:00:56]} 18. Rf2 {[%emt 0:17:47]} Ne6 {[%emt 0:09:18]} 19. Nf5 {[%emt 0:03:31]} Bc7 {[%emt 0:03:10]} 20. Nfd4 {[%emt 0:15:51]} Nxd4 {[%emt 0:03:31]} 21. Nxd4 {[%emt 0:00:02]} Bb6 {[%emt 0:00:09]} 22. Bc3 {[%emt 0:00:04]} Rad8 {[%emt 0:01:15]} 23. Kf1 {[%emt 0:01:13]} Re7 {[%emt 0:03:32]} 24. Bh1 {[%emt 0:08:31]} Ne8 {[%emt 0:03:07]} 25. Rg2 {[%emt 0:00:44]} Nc7 {[%emt 0:03:43]} 26. f5 {[%emt 0:02:30]} f6 {[%emt 0:01:08]} 27. Nb3 {[%emt 0:00:29]} Nb5 {[%emt 0:03:06]} 28. Be1 {[%emt 0:01:00]} Nd4 {[%emt 0:07:57]} 29. Bf2 {[%emt 0:08:08]} Nxb3 {[%emt 0:00:16]} 30. Bxb6 {[%emt 0:00:02]} Nxa1 {[%emt 0:04:19]} 31. Bxd8 {[%emt 0:00:14]} Re8 {[%emt 0:01:30]} 32. Bb6 {[%emt 0:00:03]} Nc2 {[%emt 0:00:06]} 33. e4 {[%emt 0:00:15]} Nxb4 {[%emt 0:00:30]} 34. Rd2 {[%emt 0:00:06]} d4 {[%emt 0:03:20]} 35. Kf2 {[%emt 0:01:48]} Kh8 {[%emt 0:03:05]} 36. Bxd4 {[%emt 0:00:18]} Bg8 {[%emt 0:00:02]} 37. Bb6 {[%emt 0:02:19]} Re5 {[%emt 0:01:30]} 38. d4 {[%emt 0:01:03]} Rb5 {[%emt 0:00:09]} 39. Bc7 {[%emt 0:00:11]} Bc4 {[%emt 0:00:23]} 40. Ke3 {[%emt 0:01:01]} Kg8 {[%emt 0:02:20]} 41. Bf3 {[%emt 0:00:21]} Na2 {[%emt 0:01:00]} 42. d5 {[%emt 0:01:35]} Rb3+ {[%emt 0:01:23]} 43. Kf4 {[%emt 0:01:21]} Nb4 {[%emt 0:02:39]} 44. d6 {[%emt 0:04:47]} Rd3 {[%emt 0:02:19]} 45. Rxd3 {[%emt 0:00:29]} Nxd3+ {[%emt 0:00:04]} 46. Ke3 {[%emt 0:00:07]} Ne5 {[%emt 0:00:17]} 47. h4 {[%emt 0:00:07]} Kf7 {[%emt 0:01:59]} 48. Bd1 {[%emt 0:00:49]} Ke8 {[%emt 0:00:15]} 49. Kd4 {[%emt 0:00:15]} Ba2 {[%emt 0:02:11]} 50. b3 {[%emt 0:01:47]} Bb1 {[%emt 0:00:17]} 51. g5 {[%emt 0:00:07]} hxg5 {[%emt 0:00:08]} 52. hxg5 {[%emt 0:00:13]} Kd7 {[%emt 0:00:30]} 53. g6 {[%emt 0:04:06]} Bd3 {[%emt 0:01:05]} 54. Ba5 {[%emt 0:00:08]} Bb1 {[%emt 0:00:37]} 55. Bd2 {[%emt 0:00:14]} Ke8 {[%emt 0:00:43]} 56. Be2 {[%emt 0:01:20]} Bc2 {[%emt 0:00:21]} 57. Bf4 {[%emt 0:00:39]} c5+ {[%emt 0:00:30]} 58. Kc3 {[%emt 0:07:59]} Bxe4 {[%emt 0:00:06]} 59. Bxe5 {[%emt 0:00:04]} fxe5 {[%emt 0:00:06]} 60. Bd3 {[%emt 0:00:26]} Bc6 {[%emt 0:01:15]} 61. Bc4 {[%emt 0:00:27]} Kf8 {[%emt 0:00:35]} 62. Be6 {[%emt 0:00:06]} b5 {[%emt 0:00:24]} 63. d7 {[%emt 0:00:07]} Ke7 {[%emt 0:00:02]} 64. f6+ {[%emt 0:00:09]} gxf6 {[%emt 0:00:32]} 65. g7 {[%emt 0:00:12]} b4+ {[%emt 0:00:30]} 66. Kd2 {[%emt 0:00:23]} Bxd7 {[%emt 0:00:12]} 67. Bc4 {[%emt 0:00:13]} 1-0

[Event "10th Iberoamericano-ch 2024"]
[Site "Linares"]
[Date "2024.09.25"]
[Round "2.28"]
[White "Jodorcovsky, Paulo Leonardo"]
[Black "Iturrizaga Bonelli, Eduardo"]
[Result "0-1"]
[ECO "A43"]
[WhiteElo "1935"]
[BlackElo "2577"]
[Annotator "RC"]
[PlyCount "92"]
[EventDate "2024.09.25"]
[EventType "swiss"]
[EventCountry "ESP"]
[SourceTitle "playchess.com"]
[Source "ChessBase"]
[SourceQuality "1"]
[TimeControl "5400+30"]

1. d4 {[%emt 0:00:04]} Nf6 {[%emt 0:01:52]} 2. Nf3 {[%emt 0:00:29]} c5 {[%emt 0:00:37]} 3. d5 {[%emt 0:00:11]} b5 {[%emt 0:00:06]} 4. c3 {[%emt 0:00:22]} a6 {[%emt 0:01:01]} 5. Bg5 {[%emt 0:00:21]} Ne4 {[%emt 0:00:27]} 6. Bh4 {[%emt 0:00:20]} Bb7 {[%emt 0:00:06]} 7. Qd3 {[%emt 0:06:49]} Nd6 {[%emt 0:02:16]} 8. e4 {[%emt 0:01:23]} g6 {[%emt 0:00:04]} 9. a4 {[%emt 0:09:18]} Bg7 {[%emt 0:02:09]} 10. Nbd2 {[%emt 0:04:13]} Qb6 {[%emt 0:00:57]} 11. a5 {[%emt 0:04:46]} Qc7 {[%emt 0:01:50]} 12. Be2 {[%emt 0:03:49]} f5 {[%emt 0:13:47]} 13. O-O {[%emt 0:14:15]} c4 {[%emt 0:01:41]} 14. Qe3 {[%emt 0:02:30]} fxe4 {[%emt 0:00:04]} 15. Nd4 {[%emt 0:03:51]} O-O {[%emt 0:02:38]} 16. Qg3 {[%emt 0:09:24]} e5 {[%emt 0:11:05]} 17. dxe6 {[%emt 0:02:12]} Nc6 {[%emt 0:00:14]} 18. Nxc6 {[%emt 0:09:38]} Qxc6 {[%emt 0:00:24]} 19. Qh3 {[%emt 0:03:00]} dxe6 {[%emt 0:03:33]} 20. Qxe6+ {[%emt 0:04:29]} Rf7 {[%emt 0:00:05]} 21. Be7 {[%emt 0:02:26]} Qe8 {[%emt 0:04:56]} 22. Qxd6 {[%emt 0:02:41]} Rxe7 {[%emt 0:00:05]} 23. Rfd1 {[%emt 0:00:43]} Be5 {[%emt 0:40:05]} 24. Qc5 {[%emt 0:00:26]} e3 {[%emt 0:05:24]} 25. fxe3 {[%emt 0:02:21]} Rc7 {[%emt 0:00:48]} 26. Qa3 {[%emt 0:01:01]} Bg7 {[%emt 0:02:44]} 27. Bf3 {[%emt 0:07:09]} Bf8 {[%emt 0:00:24]} 28. Qa2 {[%emt 0:01:44]} Qxe3+ {[%emt 0:00:13]} 29. Kh1 {[%emt 0:00:05]} Rd8 {[%emt 0:02:25]} 30. Bxb7 {[%emt 0:01:52]} Rxb7 {[%emt 0:00:03]} 31. Nf3 {[%emt 0:01:03]} Rxd1+ {[%emt 0:00:08]} 32. Rxd1 {[%emt 0:00:10]} Rf7 {[%emt 0:00:05]} 33. Rf1 {[%emt 0:02:33]} Rxf3 {[%emt 0:03:14]} 34. gxf3 {[%emt 0:00:06]} Qd2 {[%emt 0:00:27]} 35. Qb1 {[%emt 0:01:30]} Bd6 {[%emt 0:00:05]} 36. f4 {[%emt 0:00:03]} Qd5+ {[%emt 0:00:11]} 37. Kg1 {[%emt 0:00:07]} Bc5+ {[%emt 0:00:02]} 38. Rf2 {[%emt 0:00:07]} Qd2 {[%emt 0:00:45]} 39. Qf1 {[%emt 0:00:21]} Qxb2 {[%emt 0:00:29]} 40. Kg2 {[%emt 0:00:31]} Bxf2 {[%emt 0:00:30]} 41. Qxf2 {[%emt 0:00:03]} Qxf2+ {[%emt 0:00:27]} 42. Kxf2 {[%emt 0:00:06]} Kf7 {[%emt 0:00:02]} 43. Ke3 {[%emt 0:00:24]} Ke6 {[%emt 0:00:05]} 44. Ke4 {[%emt 0:00:17]} Kd6 {[%emt 0:00:33]} 45. Kd4 {[%emt 0:00:06]} Kc6 {[%emt 0:00:08]} 46. h4 {[%emt 0:00:29]} h5 {[%emt 0:00:29]} 0-1

[Event "10th Iberoamericano-ch 2024"]
[Site "Linares"]
[Date "2024.09.25"]
[Round "2.29"]
[White "Cesar Maestre, Bernardo"]
[Black "Santos, Tomas Afonso Pires"]
[Result "1-0"]
[ECO "B92"]
[WhiteElo "2369"]
[BlackElo "2012"]
[Annotator "RC"]
[PlyCount "77"]
[EventDate "2024.09.25"]
[EventType "swiss"]
[EventCountry "ESP"]
[SourceTitle "playchess.com"]
[Source "ChessBase"]
[SourceQuality "1"]
[TimeControl "5400+30"]

1. e4 {[%emt 0:00:04]} c5 {[%emt 0:00:07]} 2. Nf3 {[%emt 0:00:04]} d6 {[%emt 0:00:04]} 3. d4 {[%emt 0:00:05]} cxd4 {[%emt 0:00:08]} 4. Nxd4 {[%emt 0:00:06]} Nf6 {[%emt 0:00:05]} 5. Nc3 {[%emt 0:00:05]} a6 {[%emt 0:00:06]} 6. Be2 {[%emt 0:00:04]} e5 {[%emt 0:00:06]} 7. Nb3 {[%emt 0:00:03]} Be7 {[%emt 0:00:06]} 8. Be3 {[%emt 0:00:04]} Be6 {[%emt 0:00:12]} 9. Nd5 {[%emt 0:00:05]} Nbd7 {[%emt 0:00:14]} 10. Qd3 {[%emt 0:00:19]} Bxd5 {[%emt 0:00:31]} 11. exd5 {[%emt 0:00:10]} O-O {[%emt 0:01:07]} 12. g4 {[%emt 0:01:01]} Nb6 {[%emt 0:12:01]} 13. c4 {[%emt 0:01:17]} Na4 {[%emt 0:04:43]} 14. O-O-O {[%emt 0:01:34]} Nd7 {[%emt 0:02:55]} 15. h4 {[%emt 0:07:39]} Qc7 {[%emt 0:10:01]} 16. Kb1 {[%emt 0:03:00]} Nac5 {[%emt 0:04:49]} 17. Nxc5 {[%emt 0:02:29]} Nxc5 {[%emt 0:00:06]} 18. Qc2 {[%emt 0:01:08]} a5 {[%emt 0:01:29]} 19. g5 {[%emt 0:02:54]} f5 {[%emt 0:02:40]} 20. f4 {[%emt 0:08:03]} e4 {[%emt 0:06:37]} 21. h5 {[%emt 0:03:12]} Rfc8 {[%emt 0:01:57]} 22. Qc3 {[%emt 0:12:33]} Qd7 {[%emt 0:03:03]} 23. h6 {[%emt 0:00:55]} Bf8 {[%emt 0:01:38]} 24. hxg7 {[%emt 0:14:21]} Bxg7 {[%emt 0:01:39]} 25. Bd4 {[%emt 0:01:28]} Bxd4 {[%emt 0:04:31]} 26. Qxd4 {[%emt 0:00:06]} Qg7 {[%emt 0:00:49]} 27. Qxg7+ {[%emt 0:03:35]} Kxg7 {[%emt 0:00:08]} 28. Rh6 {[%emt 0:00:04]} Ra6 {[%emt 0:02:52]} 29. Rdh1 {[%emt 0:01:05]} Rh8 {[%emt 0:01:45]} 30. g6 {[%emt 0:01:52]} e3 {[%emt 0:00:56]} 31. gxh7 {[%emt 0:00:48]} Rb6 {[%emt 0:01:05]} 32. Kc2 {[%emt 0:01:13]} Ne4 {[%emt 0:01:01]} 33. Re6 {[%emt 0:03:14]} Rf8 {[%emt 0:02:05]} 34. Re7+ {[%emt 0:04:52]} Kh8 {[%emt 0:00:16]} 35. Rg1 {[%emt 0:00:11]} Nf6 {[%emt 0:04:54]} 36. Bd3 {[%emt 0:03:30]} Nh5 {[%emt 0:01:49]} 37. Bxf5 {[%emt 0:01:27]} Nxf4 {[%emt 0:00:47]} 38. Rf7 {[%emt 0:03:48]} Re8 {[%emt 0:01:46]} 39. Rfg7 {[%emt 0:00:07]} 1-0

[Event "10th Iberoamericano-ch 2024"]
[Site "Linares"]
[Date "2024.09.25"]
[Round "2.30"]
[White "Teran Alvarez, Ismael"]
[Black "Rodriguez Redondo, Adhara"]
[Result "1/2-1/2"]
[ECO "D35"]
[WhiteElo "2329"]
[BlackElo "2184"]
[Annotator "RC"]
[PlyCount "116"]
[EventDate "2024.09.25"]
[EventType "swiss"]
[EventCountry "ESP"]
[SourceTitle "playchess.com"]
[Source "ChessBase"]
[SourceQuality "1"]
[TimeControl "5400+30"]

1. c4 {[%emt 0:00:13]} e6 {[%emt 0:00:30]} 2. Nc3 {[%emt 0:01:19]} d5 {[%emt 0:06:09]} 3. d4 {[%emt 0:00:25]} Nf6 {[%emt 0:00:41]} 4. cxd5 {[%emt 0:00:14]} exd5 {[%emt 0:00:13]} 5. Bg5 {[%emt 0:00:15]} c6 {[%emt 0:11:25]} 6. e3 {[%emt 0:00:31]} h6 {[%emt 0:01:45]} 7. Bh4 {[%emt 0:00:12]} Be7 {[%emt 0:00:50]} 8. Bd3 {[%emt 0:00:11]} O-O {[%emt 0:00:19]} 9. Nge2 {[%emt 0:00:20]} Re8 {[%emt 0:07:05]} 10. Qc2 {[%emt 0:06:25]} Nbd7 {[%emt 0:04:14]} 11. O-O {[%emt 0:01:42]} Ne4 {[%emt 0:06:30]} 12. Bxe7 {[%emt 0:02:32]} Qxe7 {[%emt 0:01:16]} 13. Bxe4 {[%emt 0:07:28]} dxe4 {[%emt 0:00:55]} 14. Ng3 {[%emt 0:22:30]} Nf6 {[%emt 0:00:46]} 15. Rae1 {[%emt 0:00:14]} h5 {[%emt 0:06:58]} 16. f3 {[%emt 0:05:07]} exf3 {[%emt 0:07:47]} 17. Rxf3 {[%emt 0:07:15]} Bg4 {[%emt 0:04:00]} 18. Rf4 {[%emt 0:01:33]} c5 {[%emt 0:15:24]} 19. Nge4 {[%emt 0:19:45]} Nxe4 {[%emt 0:04:12]} 20. Rxe4 {[%emt 0:01:08]} Qg5 {[%emt 0:03:50]} 21. Qf2 {[%emt 0:01:38]} b6 {[%emt 0:06:47]} 22. Qg3 {[%emt 0:13:08]} Rxe4 {[%emt 0:08:43]} 23. Nxe4 {[%emt 0:00:09]} Qg6 {[%emt 0:00:19]} 24. Nc3 {[%emt 0:01:57]} cxd4 {[%emt 0:01:12]} 25. exd4 {[%emt 0:00:08]} Rd8 {[%emt 0:00:32]} 26. d5 {[%emt 0:03:46]} h4 {[%emt 0:00:20]} 27. Qxh4 {[%emt 0:00:48]} f6 {[%emt 0:00:43]} 28. Qg3 {[%emt 0:00:31]} Re8 {[%emt 0:00:32]} 29. Rxe8+ {[%emt 0:01:38]} Qxe8 {[%emt 0:00:05]} 30. h3 {[%emt 0:00:15]} Bd7 {[%emt 0:00:19]} 31. Kf2 {[%emt 0:01:39]} b5 {[%emt 0:00:35]} 32. Qe3 {[%emt 0:00:26]} Qb8 {[%emt 0:00:59]} 33. b4 {[%emt 0:00:27]} Qd6 {[%emt 0:00:30]} 34. Qd4 {[%emt 0:00:14]} a6 {[%emt 0:00:22]} 35. Kg1 {[%emt 0:00:48]} Be6 {[%emt 0:00:41]} 36. Qc5 {[%emt 0:00:32]} Qxc5+ {[%emt 0:00:29]} 37. bxc5 {[%emt 0:00:26]} b4 {[%emt 0:00:12]} 38. Ne2 {[%emt 0:01:03]} Bxd5 {[%emt 0:00:04]} 39. Nf4 {[%emt 0:00:11]} Bxa2 {[%emt 0:01:09]} 40. c6 {[%emt 0:00:21]} Bb1 {[%emt 0:00:13]} 41. Nd5 {[%emt 0:00:39]} Kf7 {[%emt 0:00:51]} 42. Nxb4 {[%emt 0:00:45]} a5 {[%emt 0:00:31]} 43. Nd5 {[%emt 0:00:30]} Ke6 {[%emt 0:00:29]} 44. Nc3 {[%emt 0:00:33]} Bd3 {[%emt 0:00:29]} 45. Kf2 {[%emt 0:00:25]} Kd6 {[%emt 0:00:16]} 46. h4 {[%emt 0:00:20]} Kxc6 {[%emt 0:00:35]} 47. Ke3 {[%emt 0:00:07]} Bg6 {[%emt 0:00:33]} 48. Kd4 {[%emt 0:00:58]} Bc2 {[%emt 0:00:35]} 49. Ne2 {[%emt 0:00:25]} a4 {[%emt 0:00:27]} 50. Nf4 {[%emt 0:00:40]} g5 {[%emt 0:00:36]} 51. hxg5 {[%emt 0:00:07]} fxg5 {[%emt 0:00:07]} 52. Nh3 {[%emt 0:00:12]} g4 {[%emt 0:00:34]} 53. Nf2 {[%emt 0:00:08]} Bf5 {[%emt 0:00:36]} 54. Kc3 {[%emt 0:00:15]} Kb5 {[%emt 0:00:19]} 55. Kb2 {[%emt 0:00:08]} Kb4 {[%emt 0:00:24]} 56. g3 {[%emt 0:00:31]} a3+ {[%emt 0:00:32]} 57. Ka1 {[%emt 0:00:05]} Kb3 {[%emt 0:00:40]} 58. Ne4 {[%emt 0:00:46]} Bxe4 1/2-1/2

[Event "10th Iberoamericano-ch 2024"]
[Site "Linares"]
[Date "2024.09.25"]
[Round "2.31"]
[White "Prado Acebo, Ines"]
[Black "Leyva, Hector"]
[Result "0-1"]
[ECO "C41"]
[WhiteElo "2189"]
[BlackElo "2296"]
[Annotator "RC"]
[PlyCount "74"]
[EventDate "2024.09.25"]
[EventType "swiss"]
[EventCountry "ESP"]
[SourceTitle "playchess.com"]
[Source "ChessBase"]
[SourceQuality "1"]
[TimeControl "5400+30"]

1. e4 {[%emt 0:00:04]} d6 {[%emt 0:00:26]} 2. d4 {[%emt 0:00:13]} e5 {[%emt 0:00:10]} 3. Nf3 {[%emt 0:00:14]} Qe7 {[%emt 0:00:11]} 4. Nc3 {[%emt 0:05:28]} c6 {[%emt 0:00:05]} 5. a4 {[%emt 0:04:20]} h6 {[%emt 0:00:12]} 6. h3 {[%emt 0:03:32]} Nf6 {[%emt 0:00:06]} 7. Be3 {[%emt 0:08:56]} Qc7 {[%emt 0:00:35]} 8. Bc4 {[%emt 0:02:43]} Be7 {[%emt 0:00:11]} 9. O-O {[%emt 0:01:26]} g5 {[%emt 0:00:59]} 10. dxe5 {[%emt 0:06:49]} dxe5 {[%emt 0:00:07]} 11. Nh2 {[%emt 0:01:27]} Nbd7 {[%emt 0:07:48]} 12. Ng4 {[%emt 0:10:39]} Nxg4 {[%emt 0:14:16]} 13. hxg4 {[%emt 0:00:46]} Nf6 {[%emt 0:01:09]} 14. f3 {[%emt 0:03:18]} Qa5 {[%emt 0:01:38]} 15. Qe2 {[%emt 0:11:20]} Nd7 {[%emt 0:06:03]} 16. Bf2 {[%emt 0:06:25]} Nc5 {[%emt 0:25:20]} 17. Rfb1 {[%emt 0:04:14]} Ne6 {[%emt 0:00:45]} 18. Nd1 {[%emt 0:01:47]} Nf4 {[%emt 0:02:53]} 19. Qf1 {[%emt 0:04:24]} h5 {[%emt 0:00:26]} 20. b4 {[%emt 0:02:26]} Qc7 {[%emt 0:01:17]} 21. gxh5 {[%emt 0:07:11]} Rxh5 {[%emt 0:01:24]} 22. Ne3 {[%emt 0:00:41]} Qd6 {[%emt 0:18:06]} 23. Bg3 {[%emt 0:02:26]} a5 {[%emt 0:03:14]} 24. c3 {[%emt 0:03:58]} Bd8 {[%emt 0:00:22]} 25. bxa5 {[%emt 0:02:13]} Bxa5 {[%emt 0:00:59]} 26. Ra2 {[%emt 0:00:35]} Qc5 {[%emt 0:04:22]} 27. Bf2 {[%emt 0:00:21]} Qf8 {[%emt 0:00:28]} 28. Bg3 {[%emt 0:04:51]} Bxc3 {[%emt 0:01:00]} 29. Kf2 {[%emt 0:00:17]} Bd4 {[%emt 0:00:16]} 30. Qc1 {[%emt 0:00:55]} Qc5 {[%emt 0:04:32]} 31. Bf1 {[%emt 0:01:04]} Qa7 {[%emt 0:03:00]} 32. Ra3 {[%emt 0:00:35]} Rh1 {[%emt 0:00:41]} 33. a5 {[%emt 0:00:17]} Bd7 {[%emt 0:01:42]} 34. a6 {[%emt 0:00:29]} bxa6 {[%emt 0:00:47]} 35. Qc4 {[%emt 0:00:37]} a5 {[%emt 0:00:20]} 36. Qa2 {[%emt 0:00:53]} Qc5 {[%emt 0:01:01]} 37. Rd1 {[%emt 0:00:26]} Be6 {[%emt 0:00:45]} 0-1

[Event "10th Iberoamericano-ch 2024"]
[Site "Linares"]
[Date "2024.09.25"]
[Round "2.32"]
[White "Fier, Alexandr"]
[Black "Portero Rubio, Martin"]
[Result "1-0"]
[ECO "B90"]
[WhiteElo "2551"]
[BlackElo "2043"]
[Annotator "TA"]
[PlyCount "85"]
[EventDate "2024.09.25"]
[EventType "swiss"]
[EventCountry "ESP"]
[SourceTitle "playchess.com"]
[Source "ChessBase"]
[SourceQuality "1"]
[TimeControl "5400+30"]

{[%evp 19,85,17,6,22,0,-22,-16,-12,-17,-13,0,0,74,81,90,39,111,112,166,144,170,156,236,200,179,190,194,187,180,168,199,201,225,78,97,52,51,40,79,57,113,115,198,220,217,209,183,227,200,206,186,191,213,0,64,0,182,178,578,566,995,985,1004,962,1016,1010,1585,1509]} 1. e4 {[%emt 0:00:02]} c5 {[%emt 0:00:04]} 2. Nf3 {[%emt 0:00:04]} d6 {[%emt 0:00:04]} 3. d4 {[%emt 0:00:03]} cxd4 {[%emt 0:00:05]} 4. Nxd4 {[%emt 0:00:03]} Nf6 {[%emt 0:00:06]} 5. Nc3 {[%emt 0:00:02]} a6 {[%emt 0:00:06]} 6. Be3 {[%emt 0:00:11]} e5 {[%emt 0:00:08]} 7. Nb3 {[%emt 0:00:04]} Be7 {[%emt 0:00:21]} 8. f3 {[%emt 0:00:09]} Be6 {[%emt 0:00:19]} 9. Qd2 {[%emt 0:00:04]} h5 {[%emt 0:00:31]} 10. O-O-O {[%emt 0:00:34]} Nbd7 {[%emt 0:00:57]} 11. h3 {[%emt 0:00:14]} Qc7 {[%emt 0:06:15]} 12. Bd3 {[%emt 0:00:14][%cal Bf1d3,Bd3b5,Bb5c6][%mdl 32]} b5 {[%emt 0:02:24][%cal Bb7b5,Bb5b4][%mdl 32]} 13. Kb1 {[%emt 0:02:36] The position is equal.} b4 {[%emt 0:09:38]} 14. Nd5 {[%emt 0:00:05]} Bxd5 {[%emt 0:02:53]} 15. exd5 {[%emt 0:00:05]} a5 {[%emt 0:06:34]} (15... Nxd5 $11 {keeps the balance.} 16. Bg5 Rb8) 16. Bb5 $16 {[%emt 0:00:36] A strong pair of Bishops.} O-O {[%emt 0:06:53]} 17. g4 {[%emt 0:01:18]} (17. Bc6 $16) 17... h4 {[%emt 0:02:04]} (17... Nb6 $14) 18. Bc6 {[%emt 0:00:44]} Rab8 {[%emt 0:16:53]} (18... a4 $16) 19. f4 {[%emt 0:00:42]} a4 {[%emt 0:09:13]} 20. Bxa4 {[%emt 0:01:05]} Rfc8 {[%emt 0:09:48]} (20... Nb6 $16) 21. Bc6 {[%emt 0:00:29]} exf4 {[%emt 0:02:28]} 22. Bxf4 {[%emt 0:00:06]} Ne5 {[%emt 0:01:14]} 23. Bxe5 {[%emt 0:02:14]} dxe5 {[%emt 0:00:01]} 24. Qe1 {[%emt 0:00:42]} Rb6 {[%emt 0:07:04]} 25. g5 {[%emt 0:01:41]} (25. Qxh4 $2 Nxd5 26. Qf2 Qxc6 $19 (26... Rxc6 27. Rxd5 Rxc2 28. Rd2 $17)) 25... Nh5 {[%emt 0:01:30]} 26. g6 {[%emt 0:00:50]} (26. Qxh4 $18 {and the rest is easy.} Nf4 27. Qg3) 26... fxg6 {[%emt 0:02:09]} 27. Qe4 {[%emt 0:01:14] White is more active.} Ng3 {[%emt 0:02:00][%csl LRe4,LRh1]} 28. Qc4 {[%emt 0:00:05] [#] Strongly threatening d6+.} (28. Qxg6 Nxh1 29. Qe6+ Kh7 30. Rxh1 Rxc6 31. dxc6 Qxc6 32. Qxc6 Rxc6 $19) 28... Qd6 {[%emt 0:01:42]} 29. Rhe1 {[%emt 0:00:07]} Rd8 {[%emt 0:03:22]} ({Black should play} 29... Kh7 $14) 30. Na5 {[%emt 0:00:33]} e4 {[%emt 0:06:23] [#]} (30... Bf6 $16) 31. Qb3 $1 $18 {[%emt 0:01:13] Threatens to win with Nc4.} ({Weaker is} 31. Nb7 Rxb7 32. Bxb7 Kh7 $14) 31... Kh7 {[%emt 0:01:26]} 32. Nc4 $1 {[%emt 0:00:04][%csl LRb6,LRd6]} Qc5 {[%emt 0:00:18]} 33. Nxb6 {[%emt 0:00:03]} Qxb6 {[%emt 0:00:05]} 34. a4 {[%emt 0:00:02][%cal Od5d6] d6! would now be deadly.} Bd6 {[%emt 0:01:03]} 35. Qc4 {[%emt 0:00:11]} ({Resist} 35. Qe3 Qc7 36. Qg5 Be7) 35... Rf8 {[%emt 0:01:12]} 36. Qb5 {[%emt 0:01:18]} (36. Bb5 $18) 36... Qf2 $14 {[%emt 0:00:38]} 37. Qc4 {[%emt 0:03:23]} ({Reject} 37. a5 e3 38. Ka2 e2) (37. Rc1 $1 $14) 37... g5 $2 {[%emt 0:00:33]} (37... Qb6 $1 $11 {and Black is okay.}) 38. Bb5 $18 {[%emt 0:00:11]} e3 $2 {[%emt 0:00:20]} (38... g6 {is more resistant.} 39. Qc6 Rf6 40. Qd7+ Kh6) 39. Qd3+ {[%emt 0:00:11] White is clearly winning.} Nf5 {[%emt 0:00:39]} 40. Rf1 {[%emt 0:00:05]} g6 {[%emt 0:00:33]} 41. Rxf2 {[%emt 0:00:04]} exf2 {[%emt 0:00:02]} 42. Qe4 {[%emt 0:00:28]} Ng3 {[%emt 0:00:19]} 43. Qe6 {[%emt 0:00:04] Weighted Error Value: White=0.26 (precise) /Black=0.47.  Loses game:     	---       	Black=1      Mistake:       	White=4     	Black=7      Inaccurate:     	White=1     	Black=1      OK:         	White=10    	Black=13     Best:        	White=3     	Black=1      Strong:       	White=1     	---} 1-0